Cogmind - Beta 16.1 @@@ ROGUE MODE // 2026.05.02 @ 22:18:59 Player: SunShine214 Result: Destroyed by S-10 Pest with Light Assault Rifle Performance ------------- Evolutions (0) 0 Regions Visited (1) 200 Robots Destroyed (22) 110 Value Destroyed (558) 558 Prototype IDs (0) 0 Alien Tech Used (0) 0 Bonus (0) 0 TOTAL SCORE: 868 Bonus ------- None Cogmind --------- Core Integrity 0/250 Matter 293/300 Energy 100/100 System Corruption 0% Temperature Cool (0) Movement Core (350) Ox6 Location -10/Materials Parts ------- > --- POWER (1) -------- (None) > --- PROPULSION (2) --- (None) > --- UTILITY (2) ------ Large Storage Unit > --- WEAPON (2) ------- (None) > --- INVENTORY (15) --- Ion Engine Ion Engine Light Ion Engine Aluminum Leg Aluminum Leg Small Storage Unit Hacking Suite Mining Laser Peak State ------------ > --- POWER ------------ Light Ion Engine > --- PROPULSION ------- Light Treads Light Treads > --- UTILITY ---------- Small Storage Unit Seismic Detector > --- WEAPON ----------- Medium Laser Small Laser > --- INVENTORY -------- Mining Laser [Rating: 7] Favorites ----------- Power Light Ion Engine Engine Light Ion Engine Propulsion Light Treads Treads Light Treads Wheel Wheel Utility Small Storage Unit Device Seismic Detector Storage Small Storage Unit Weapon Small Laser Energy Gun Small Laser Launcher Grenade Launcher Build | -11 -10 ------- Run | Yrd Mat Slots Evolved . | . . Power . | . . Propulsion . | . . Utility . | . . Weapon . | . . Parts Attached 14 | 7 7 Power 5 | 1 4 Engine 5 | 1 4 Core . | . . Reactor . | . . Propulsion 3 | 2 1 Treads 2 | 2 . Leg . | . . Wheel 1 | . 1 Hover . | . . Flight . | . . Utility 3 | 2 1 Device 1 | 1 . Storage 2 | 1 1 Processor . | . . Hackware . | . . Protection . | . . Artifact . | . . Weapon 3 | 2 1 Energy Gun 2 | 2 . Energy Cannon . | . . Ballistic Gun . | . . Ballistic Cannon . | . . Launcher 1 | . 1 Special Weapon . | . . Impact Weapon . | . . Slashing Weapon . | . . Piercing Weapon . | . . Special Melee Weapon . | . . Unidentified Prototypes . | . . Parts Lost 9 | . 9 Power 2 | . 2 Propulsion 3 | . 3 Utility 1 | . 1 Weapon 3 | . 3 Highest Loss Streak 4 | . 4 To Critical Strikes . | . . Average Backups 2 | . 2 Power . | . . Propulsion . | . . Utility . | . . Weapon 1 | . 1 Tool/Special . | . . Unused Backups 4 | . 4 Power . | . . Propulsion 2 | . 2 Utility 1 | . 1 Weapon 1 | . 1 Tool/Special . | . . Average Slot Usage (%) 89 | . 89 Engine 13 | . 13 Treads 21 | . 21 Wheel 2 | . 2 Device 10 | . 10 Storage 14 | . 14 Energy Gun 24 | . 24 Peak Build Rating 7 | 7 7 Average Rating 6 | 5 6 On Entrance 3 | . 7 Avg Prop Armor Cover (%) . | . . Naked Turns . | . . Heaviest Build 24 | 12 24 Greatest Support 40 | 40 40 Greatest Overweight (x) 2 | . 2 Average Overweight (x) . | . . Largest Inventory Capacity 15 | 8 15 Average Capacity 8 | 7 8 Most Carried 8 | 1 8 Average Carried 2 | . 2 Final Capacity 15 | 8 15 Final Carried 8 | 1 8 Class Distribution -------------------- 100% | Mutant Dominant Class ---------------- Mutant | -10/Materials Resources | -11 -10 ----------- Run | Yrd Mat Matter Collected 395 | 234 161 Remotely . | . . Salvage Created 613 | 114 499 Parts 43 | 11 32 Haulers Intercepted . | . . Recyclers Shooed 1 | 1 . Parts Field Recycled . | . . Retrieved Matter . | . . Parts Self-Destructed . | . . Prevented . | . . Parts Restored . | . . Kills | -11 -10 ------- Run | Yrd Mat Combat Hostiles Destroyed 15 | . 15 Guns 11 | . 11 AOE 3 | . 3 Classes Destroyed 6 | 2 4 Builder 1 | . 1 Tunneler 3 | 3 . Recycler 2 | 1 1 Operator 1 | . 1 Swarmer 3 | . 3 Grunt 12 | . 12 Best Kill Streak 6 | 4 6 Combat Bots Only 5 | . 5 Max Kills in Single Turn 2 | 1 2 Gunslinging . | . . Exploded 2 | . 2 Melee . | . . Uniques/NPCs Destroyed . | . . Combat | -11 -10 -------- Run | Yrd Mat Hostile Shots Fired 110 | . 110 Missed 23 | . 23 Hits 87 | . 87 Projectile 87 | . 87 Critical Strikes 1 | . 1 Damage Taken 970 | . 970 Core 254 | . 254 Absorbed by Shields . | . . Core Remaining (%) 100 | 100 . Volleys Fired 61 | 13 48 Largest 2 | 2 2 Hottest 90 | 90 90 Shots Fired 107 | 25 82 Gun 99 | 25 74 Cannon . | . . Launcher 8 | . 8 Special . | . . Kinetic . | . . Thermal 99 | 25 74 Explosive 8 | . 8 Electromagnetic . | . . Robot Hit Streak 9 | 4 9 Robot Miss Streak 2 | 2 2 Penetration Max . | . . Secondary Targets . | . . Shots Hit Robots 71 | 16 55 Core Hits 40 | 6 34 Critical Kills . | . . Critical Parts Destroyed . | . . Critical Strikes 2 | 1 1 Burn 2 | 1 1 Melee Attacks . | . . Impact . | . . Slashing . | . . Piercing . | . . Sneak Attacks . | . . Combat Hostiles . | . . Follow-up Attacks . | . . Damage Inflicted 1423 | 202 1221 Guns 783 | 201 582 Cannons . | . . Explosions 621 | . 621 Melee . | . . Ramming 19 | 1 18 Kinetic . | . . Thermal 783 | 201 582 Explosive 621 | . 621 Electromagnetic . | . . Impact . | . . Slashing . | . . Piercing . | . . Highest Corruption . | . . Average Corruption . | . . Corruption Purged . | . . Corruption Blocked . | . . Overload Shots . | . . Overflow Damage 1 | . 1 Projectiles . | . . Explosions 1 | . 1 Melee . | . . Knockbacks . | . . Impact . | . . Kinetic . | . . Secondary . | . . Self-Inflicted Damage 24 | . 24 Shots 2 | . 2 Rammed 3 | 1 2 Targets Rammed 4 | 1 3 Kicked . | . . Crushed 1 | . 1 Highest Temperature 432 | 276 432 Average Temperature 147 | 139 149 Received Heat Transfer 378 | . 378 Effects 2 | . 2 Damage (minor) 2 | . 2 Siege Activations . | . . Martial Activations . | . . Shielding Activations . | . . Robots Disrupted . | . . Combat Hostiles . | . . Robots Corrupted . | . . Combat Hostiles . | . . Parts Fried . | . . Impact Corruptions . | . . Robots Melted 1 | . 1 Combat Hostiles 1 | . 1 Parts Melted 4 | 2 2 Heat Transferred 2148 | 595 1553 Parts Sabotaged . | . . Parts Stolen . | . . Parts Stripped . | . . Power Chain Reactions . | . . Alert | -11 -10 ------- Run | Yrd Mat Maximum Alert Level 1 | . 1 Low Security (%) 88 | 100 86 Level 1 11 | . 13 Level 2 . | . . Level 3 . | . . Level 4 . | . . Level 5 . | . . High Security . | . . Max Security . | . . Peak Influence 243 | 10 243 Initial . | . . Average 56 | 1 63 Influence Increases 473 | 20 453 Destroy 0b10 Robot/C 300 | . 300 Destroy 0b10 Robot/NC 35 | 20 15 Destroy Leader 60 | . 60 Disable Machine 60 | . 60 Destroy Structure 18 | . 18 Influence Decreases 290 | 20 270 Time Decay 200 | 20 180 Lost Part 90 | . 90 Squads Dispatched 3 | . 3 Investigation 2 | . 2 Extermination . | . . Reinforcement 1 | . 1 Assault . | . . Garrison . | . . Intercept . | . . Searches Triggered . | . . Construction Impeded . | . . Haulers Reinforced . | . . Active Scanning Responses . | . . Cargo Convoy Interrupts . | . . Stealth | -11 -10 --------- Run | Yrd Mat Distress Signals . | . . Communications Jammed . | . . Distress Signals . | . . Times Spotted 24 | . 24 Peak Tracking Total 5 | . 5 Tactical Retreats . | . . Traps | -11 -10 ------- Run | Yrd Mat Traps Triggered 2 | . 2 Indirectly . | . . Trap Hack Attempts . | . . Triggered . | . . Disarmed . | . . Reprogrammed . | . . Reused . | . . Traps Extracted . | . . Installed . | . . Triggered . | . . Machines | -11 -10 ---------- Run | Yrd Mat Machines Disabled 4 | . 4 Max in Single Turn 2 | . 2 Machines Repaired . | . . Machines Dismantled . | . . Machines Sabotaged . | . . Overloaded Fab Kills . | . . Hacking | -11 -10 --------- Run | Yrd Mat Machines Accessed 2 | . 2 Terminals 1 | . 1 Fabricators . | . . Repair Stations . | . . Recycling Units 1 | . 1 Scanalyzers . | . . Garrison Access . | . . Total Hacks 6 | . 6 Successful . | . . Failed 6 | . 6 Catastrophic 2 | . 2 Database Lockouts . | . . Manual . | . . Terminals 4 | . 4 Fabricators . | . . Repair Stations . | . . Recycling Units 2 | . 2 Scanalyzers . | . . Garrison Access . | . . Terminal Hacks . | . . Fabricator Hacks . | . . Repair Station Hacks . | . . Recycling Unit Hacks . | . . Scanalyzer . | . . Garrison Access Hacks . | . . Unauthorized Hacks . | . . Terminals . | . . Fabricators . | . . Repair Stations . | . . Recycling Units . | . . Scanalyzers . | . . Garrison Access . | . . Data Cores Recovered . | . . Used . | . . Hacking Detections 2 | . 2 Full Trace Events 1 | . 1 Feedback Events . | . . Feedback Blocked . | . . Robot Schematics Acquired . | . . Robots Built . | . . Authchips . | . . Time . | . . Total Robot Build Rating . | . . Part Schematics Acquired . | . . Parts Built . | . . Authchips . | . . Time . | . . Total Part Build Rating . | . . Part Studies Acquired . | . . Parts Repaired . | . . Time . | . . Parts Recycled . | . . Recycled Matter . | . . Retrieved Matter . | . . Retrieved Components . | . . Parts Scanalyzed . | . . Part Schematics Acquired . | . . Parts Damaged . | . . Bothacking | -11 -10 ------------ Run | Yrd Mat Used RIF Installer . | . . Robots Hacked . | . . Non-combat . | . . Combat . | . . Robot Hacks Applied . | . . Relay Couplers Released . | . . Fabnet Peak Effective % . | . . Robots Rewired . | . . Allies Hacked . | . . Hacks Repelled . | . . Allies | -11 -10 -------- Run | Yrd Mat Total Allies . | . . Largest Group . | . . Highest-Rated Group . | . . Highest-Rated Ally . | . . Total Orders . | . . Ally Attacks . | . . Total Damage . | . . Kills . | . . Allies Corrupted . | . . Allies Melted . | . . Intel | -11 -10 ------- Run | Yrd Mat Active Infowar (turns) 852 | 21 831 Seismic 852 | 21 831 Robot Analysis Total . | . . Derelict Logs Recovered . | . . Drone Launches . | . . Drone Recoveries . | . . Exploration | -11 -10 ------------- Run | Yrd Mat Turns Passed 1213 | 146 1067 Spaces Moved 389 | 60 329 Core 1 | 1 . Treads 198 | 59 139 Legs . | . . Wheels 190 | . 190 Hover . | . . Flight . | . . Fastest Speed 50 | 50 80 Average Speed 127 | 158 121 Slowest Speed 160 | 160 160 Overloaded Moves . | . . Propulsion Burnouts . | . . Robots Hopped . | . . Potential Cave-ins . | . . Cave-ins Triggered . | . . Exploration Rate (%) 28 | 4 52 Regions Visited 1 Branch Regions . Pre-discovered Areas . | . . Known Exits Taken . | . . Unknown Exits Taken 1 | 1 . Scrap Searched . | . . Spaces Dug . | . . Terrain Destroyed 22 | . 22 Melee . | . . Projectile . | . . AOE 22 | . 22 Terrain Rammed . | . . Walls Destroyed . | . . Machines Disabled . | . . Actions | -11 -10 --------- Run | Yrd Mat Total 991 | 82 909 Wait 513 | 1 512 Move 388 | 59 329 Hop . | . . Pick Up 6 | 1 5 Fast Attach 9 | 7 2 Attach 3 | . 3 Detach 2 | . 2 Swap 5 | . 5 Drop . | . . Fire 61 | 13 48 Melee . | . . Ram 1 | . 1 Kick . | . . Crush 3 | 1 2 Escape Stasis . | . . Rewire . | . . Trap . | . . Miscellaneous . | . . Route ------- -11/Scrapyard -10/Materials (discovered 2 exits: [*Mat x2]) History --------- Turn | Location | Event 24 | -11/Scrapyard | Discovered new exit (range 16) 147 | -11/Scrapyard | Entered Materials 300 | -10/Materials | Build established: Mutant 981 | -10/Materials | Discovered new exit (range 10) 1009 | -10/Materials | Lost 4 parts (2n1u1w) 1096 | -10/Materials | Core integrity fell below 50% 1126 | -10/Materials | Discovered new exit (range 16) 1202 | -10/Materials | Core integrity fell below 20% 1214 | -10/Materials | Destroyed by S-10 Pest with Light Assault Rifle Last Messages --------------- 01120_ K-01 Serf collects debris. 01120_ U-05 Engineer builds a Wall. 01121_ K-01 Serf collects debris. 01121_ U-05 Engineer builds a Wall. 01122_ U-05 Engineer lays Concrete. 01122_ K-01 Serf collects debris. 01124_ U-05 Engineer lays Concrete. 01125_ U-05 Engineer builds a Wall. 01126_ EXIT=FOUND 01126_ U-05 Engineer lays Concrete. 01129_ R-06 Scavenger collects Heat Sink. 01130_ U-05 Engineer lays Concrete. 01132_ Triggered Explosive Trap. 01132_ An explosion rips through the floor. 01132_ W-16 Scout destroyed. 01140_ Slammed into K-01 Serf. 01169_ K-01 Serf cleans the Terminal. 01205_ Wheel destroyed. 01205_ Lgt. Ion Engine destroyed. 01208_ Sml. Laser destroyed. Map ----- +----------------------------------------------------+ | !##???# #?????????????????? | | !#???# " #?????????????????? | | !#???# """ " #?????????????????? | | #???# "" """ #?????????????????? | | !#???# #?????????????????? | | !##???# #?????????????????? | | ####?????##########?????????????????? | | #????????? ?????????????????????? | | #?????????? "Y????????????????????? | | ##?????????? """???????????????????? | | #####??????? ?########??????????? | | !##"T"##########+### [[! #??????????? | | ## [!! #??????????? | | + [! #??????????? | | """ """ """ ## #??????????? | | """ """ """ ## #??????????? | | """ """ """ ## #??????????? | | ##+#####??????????? | | #????????????? | | ########## #????????????? | | #????????# ##+#####??????????? | | ##????????# ## #??????????? | | ???######## ## #??????????? | | ?+ ### ## s#??????????? | | ??#########+#### ## [[ ######?????? | | ???# # + [ @s #????? | | ???# """ # # s# #????? | | ???# """ # ###+####?? #????? | | ???# " " """ # ??????????? +????? | | ???# "R" ######????????????????? | | ???# """ ! =#?????????????????????? | | ?????? #?????????????????????? | | ????????########?????????????????????? | | | | | | | | | | | | | | | | | | | | | | | | | | | | | | | | | | | +----------------------------------------------------+ Best States ------------- Heat Dissipation 25 Energy Generation 10 Energy Capacity 250 Matter Stores 300 Matter Capacity 300 Sight Range 16 Terrain Scan Density 10 Evasion (%) 44 Recoil Reduction 2 Item Schematics ----------------- None Robot Schematics ------------------ None Fabricated ------------ Nothing Repaired ---------- Nothing Studied --------- None Alien Tech Used ----------------- None Achievements -------------- None Challenges ------------ None Game ------ Seed SubatomicGreatLayer Manual? 0 Play Time 00:08:07 Cumulative 166.2 hours Start 2026.05.02 @ 22:14:36 End 2026.05.02 @ 22:18:59 Sessions 1 Manual Loads 0 Difficulty Rogue Special Mode None Game No. 260 Rogue 260 Adventurer 0 Explorer 0 Win Type - Total 1 Types 1/0/0/0/0/0/0/0/0/0 Lore% 58 Gallery% 57 Achievement% 44 Wizard Run 0 Options --------- Layout 1 ASCII 0 Keyboard 1 Movement Arrows Keybinds 0 Fullscreen 1 Font 24/Smallcaps Map View 50x35 Zoom Use 0% Tactical HUD 1 Map Filters NONE Filters NONE Steam 1 RUN: 9f5bdbe8-82a2-4fef-a0c0-343e7a5280e9